[Event "Charlotte Fall GM-A 2023"]
[Site "Charlotte"]
[Date "2023.11.21"]
[Round "8.5"]
[White "Siddharth, Jagadeesh"]
[Black "Woodward, Andy"]
[Result "1/2-1/2"]
[ECO "B53"]
[WhiteElo "2438"]
[BlackElo "2473"]
[Annotator "RC"]
[PlyCount "69"]
[EventDate "2023.11.17"]
[EventType "tourn"]
[EventCountry "USA"]
[SourceTitle "playchess.com"]
[Source "ChessBase"]
[SourceQuality "1"]
[TimeControl "5400+30"]

1. e4 {[%emt 0:04:36]} c5 {[%emt 0:00:05]} 2. Nf3 {[%emt 0:00:07]} d6 {[%emt 0:00:19]} 3. d4 {[%emt 0:01:05]} cxd4 {[%emt 0:00:13]} 4. Qxd4 {[%emt 0:00:06]} Nf6 {[%emt 0:00:48]} 5. Nc3 {[%emt 0:01:48]} Nc6 {[%emt 0:01:10]} 6. Bb5 {[%emt 0:00:10]} Bd7 {[%emt 0:00:10]} 7. Bxc6 {[%emt 0:00:11]} Bxc6 {[%emt 0:00:10]} 8. Bg5 {[%emt 0:00:09]} e6 {[%emt 0:01:35]} 9. O-O-O {[%emt 0:00:22]} Be7 {[%emt 0:00:10]} 10. Rhe1 {[%emt 0:00:06]} O-O {[%emt 0:16:33]} 11. e5 {[%emt 1:27:20]} dxe5 {[%emt 0:10:13]} 12. Nxe5 {[%emt 0:00:00]} Qxd4 {[%emt 0:14:22]} 13. Rxd4 {[%emt 0:00:00]} Rfc8 {[%emt 0:00:16]} 14. Nxc6 {[%emt 0:00:00]} Rxc6 {[%emt 0:00:08]} 15. Ne4 {[%emt 0:02:00]} e5 {[%emt 0:07:51]} 16. Rdd1 {[%emt 0:00:00]} Nxe4 {[%emt 0:05:34]} 17. Bxe7 {[%emt 0:00:00]} Nxf2 {[%emt 0:01:13]} 18. Rd2 {[%emt 0:00:00]} Re8 {[%emt 0:04:29]} 19. h3 {[%emt 0:00:00]} f5 {[%emt 0:13:57]} 20. Rxe5 {[%emt 0:00:00]} Ne4 {[%emt 0:21:14]} 21. Rd7 {[%emt 0:00:00]} Rg6 {[%emt 0:00:00]} 22. g4 {[%emt 0:00:00]} fxg4 {[%emt 0:00:00]} 23. Rxe4 {[%emt 0:00:00]} gxh3 {[%emt 0:00:00]} 24. Rh4 {[%emt 0:00:00]} Rg1+ {[%emt 0:00:00]} 25. Kd2 {[%emt 0:00:00]} Rg2+ {[%emt 0:00:00]} 26. Kd3 {[%emt 0:00:00]} h2 {[%emt 0:00:39]} 27. Rxb7 {[%emt 0:00:00]} Rg3+ {[%emt 0:00:23]} 28. Kd2 {[%emt 0:00:00]} Rg2+ {[%emt 0:00:10]} 29. Ke3 {[%emt 0:00:00]} Rxc2 {[%emt 0:02:38]} 30. Kf3 {[%emt 0:00:00]} a6 {[%emt 0:00:33]} 31. Kg3 {[%emt 0:00:00]} Re2 {[%emt 0:00:15]} 32. Bc5 {[%emt 0:00:00]} Rd8 {[%emt 0:00:50]} 33. Bf2 {[%emt 0:00:00]} Rdd2 {[%emt 0:00:15]} 34. Rxh2 {[%emt 0:00:00]} Rxb2 {[%emt 0:00:05]} 35. Rxg7+ {[%emt 0:02:14]} 1/2-1/2

[Event "Charlotte Fall GM-A 2023"]
[Site "Charlotte"]
[Date "2023.11.21"]
[Round "9.1"]
[White "Woodward, Andy"]
[Black "Sandoval Mercado, Carlos"]
[Result "1-0"]
[ECO "E73"]
[WhiteElo "2473"]
[BlackElo "2397"]
[Annotator "RC"]
[PlyCount "55"]
[EventDate "2023.11.17"]
[EventType "tourn"]
[EventCountry "USA"]
[SourceTitle "playchess.com"]
[Source "ChessBase"]
[SourceQuality "1"]
[TimeControl "5400+30"]

1. d4 {[%emt 1:31:00]} Nf6 {[%emt 0:05:33]} 2. c4 {[%emt 0:00:00]} g6 {[%emt 0:00:35]} 3. Nc3 {[%emt 0:00:00]} Bg7 {[%emt 0:00:05]} 4. e4 {[%emt 0:00:00]} d6 {[%emt 0:00:04]} 5. Be2 {[%emt 0:00:00]} O-O {[%emt 0:00:08]} 6. Be3 {[%emt 0:00:00]} Na6 {[%emt 0:00:10]} 7. h4 {[%emt 0:00:00]} h5 {[%emt 0:01:34]} 8. f3 {[%emt 0:03:30]} c5 {[%emt 0:02:43]} 9. d5 {[%emt 0:00:00]} Nc7 {[%emt 0:00:43]} 10. Qd2 {[%emt 0:00:00]} a6 {[%emt 0:02:37]} 11. a4 {[%emt 0:00:00]} Rb8 {[%emt 0:02:37]} 12. a5 {[%emt 0:00:00]} e6 {[%emt 0:02:19]} 13. e5 {[%emt 0:00:00]} Nfe8 {[%emt 0:02:24]} 14. g4 {[%emt 0:00:00]} exd5 {[%emt 0:03:10]} 15. cxd5 {[%emt 0:00:00]} Bxe5 {[%emt 0:03:46]} 16. gxh5 {[%emt 0:00:00]} gxh5 {[%emt 0:00:04]} 17. Nh3 {[%emt 0:00:00]} Ng7 {[%emt 0:12:02]} 18. O-O-O {[%emt 0:00:00]} Nb5 {[%emt 0:11:39]} 19. Ne4 {[%emt 0:00:00]} Nd4 {[%emt 0:16:47]} 20. Bxd4 {[%emt 0:00:00]} Bxd4 {[%emt 0:03:08]} 21. Qh6 {[%emt 0:00:00]} f6 {[%emt 0:11:43]} 22. Rhg1 {[%emt 0:00:11]} Qe7 {[%emt 0:09:01]} 23. Rxd4 {[%emt 0:01:55]} Bxh3 {[%emt 0:02:32]} 24. Rd2 {[%emt 0:00:35]} c4 {[%emt 0:03:34]} 25. Bd1 {[%emt 0:00:49]} Rf7 {[%emt 0:01:41]} 26. Bc2 {[%emt 0:00:20]} Re8 {[%emt 0:02:08]} 27. Re2 {[%emt 0:00:51]} Rd8 {[%emt 0:00:37]} 28. Nxf6+ {[%emt 0:05:19]} 1-0

[Event "Charlotte Fall GM-A 2023"]
[Site "Charlotte"]
[Date "2023.11.21"]
[Round "9.2"]
[White "Aarav Dengla"]
[Black "Siddharth, Jagadeesh"]
[Result "0-1"]
[ECO "C01"]
[WhiteElo "2391"]
[BlackElo "2438"]
[Annotator "RC"]
[PlyCount "156"]
[EventDate "2023.11.17"]
[EventType "tourn"]
[EventCountry "USA"]
[SourceTitle "playchess.com"]
[Source "ChessBase"]
[SourceQuality "1"]
[TimeControl "5400+30"]

1. e4 {[%emt 0:00:02]} e6 {[%emt 0:04:37]} 2. d4 {[%emt 0:00:36]} d5 {[%emt 0:00:57]} 3. exd5 {[%emt 0:02:44]} exd5 {[%emt 0:00:06]} 4. Nf3 {[%emt 0:00:04]} Nc6 {[%emt 0:00:10]} 5. Bb5 {[%emt 0:06:05]} Bd6 {[%emt 0:00:36]} 6. c4 {[%emt 0:10:03]} dxc4 {[%emt 0:00:11]} 7. Bxc6+ {[%emt 0:01:19]} bxc6 {[%emt 0:00:09]} 8. O-O {[%emt 0:02:53]} Bg4 {[%emt 0:07:56]} 9. h3 {[%emt 0:02:17]} Bh5 {[%emt 0:00:10]} 10. Nbd2 {[%emt 0:02:08]} Ne7 {[%emt 0:00:45]} 11. Qc2 {[%emt 0:09:03]} O-O {[%emt 0:07:53]} 12. Qxc4 {[%emt 0:00:48]} Rb8 {[%emt 0:05:54]} 13. a3 {[%emt 0:11:31]} Re8 {[%emt 0:09:33]} 14. Ne5 {[%emt 0:08:35]} c5 {[%emt 0:03:19]} 15. Ndf3 {[%emt 0:04:47]} cxd4 {[%emt 0:01:55]} 16. Qxd4 {[%emt 0:03:11]} Nf5 {[%emt 0:07:32]} 17. Qf4 {[%emt 0:16:41]} Bxe5 {[%emt 0:05:01]} 18. Qxf5 {[%emt 0:01:34]} g6 {[%emt 0:02:43]} 19. Qxe5 {[%emt 0:00:53]} Rxe5 {[%emt 0:00:11]} 20. Nxe5 {[%emt 0:00:03]} Qd5 {[%emt 0:01:46]} 21. Ng4 {[%emt 0:02:26]} Bxg4 {[%emt 0:02:50]} 22. hxg4 {[%emt 0:00:03]} f6 {[%emt 0:02:03]} 23. b4 {[%emt 0:14:14]} h5 {[%emt 0:04:45]} 24. gxh5 {[%emt 0:00:00]} Qxh5 {[%emt 0:02:19]} 25. Bf4 {[%emt 0:00:00]} g5 {[%emt 0:04:32]} 26. Bxc7 {[%emt 0:00:00]} Rc8 {[%emt 0:03:33]} 27. Rac1 {[%emt 0:00:00]} Kf7 {[%emt 0:01:48]} 28. Bg3 {[%emt 0:00:00]} Rxc1 {[%emt 0:04:24]} 29. Rxc1 {[%emt 0:00:00]} Qe2 {[%emt 0:00:02]} 30. Bb8 {[%emt 0:00:00]} a6 {[%emt 0:00:32]} 31. Ba7 {[%emt 0:00:47]} Qb2 {[%emt 0:00:49]} 32. Rc7+ {[%emt 0:00:47]} Kg6 {[%emt 0:00:09]} 33. Rc6 {[%emt 0:00:44]} Qxa3 {[%emt 0:01:33]} 34. Bd4 {[%emt 0:00:39]} Qxb4 {[%emt 0:00:44]} 35. Rxf6+ {[%emt 0:00:29]} Kg7 {[%emt 0:02:46]} 36. Rxa6+ {[%emt 0:01:50]} Qxd4 {[%emt 0:00:03]} 37. Ra3 {[%emt 0:00:32]} Qd1+ {[%emt 0:02:08]} 38. Kh2 {[%emt 0:00:01]} Qe1 {[%emt 0:00:01]} 39. Rf3 {[%emt 0:01:16]} Qd2 {[%emt 0:02:25]} 40. Kg1 {[%emt 0:00:45]} Qe1+ {[%emt 0:00:01]} 41. Kh2 {[%emt 0:00:01]} Kg6 {[%emt 0:00:01]} 42. g4 {[%emt 0:00:44]} Qf1 {[%emt 0:01:04]} 43. Rf5 {[%emt 0:00:25]} Qe2 {[%emt 0:00:02]} 44. Kg3 {[%emt 0:00:24]} Qd1 {[%emt 0:00:01]} 45. f3 {[%emt 0:00:58]} Qg1+ {[%emt 0:02:35]} 46. Kh3 {[%emt 0:00:01]} Qh1+ {[%emt 0:00:02]} 47. Kg3 {[%emt 0:00:01]} Qh4+ {[%emt 0:00:07]} 48. Kg2 {[%emt 0:00:01]} Kg7 {[%emt 0:00:01]} 49. Kf1 {[%emt 0:00:54]} Qh1+ {[%emt 0:02:16]} 50. Kf2 {[%emt 0:00:04]} Kg6 {[%emt 0:00:03]} 51. Kg3 {[%emt 0:00:08]} Qh4+ {[%emt 0:00:17]} 52. Kg2 {[%emt 0:00:01]} Kg7 {[%emt 0:00:01]} 53. Kf1 {[%emt 0:00:04]} Qh1+ {[%emt 0:00:05]} 54. Kf2 {[%emt 0:00:06]} Qh2+ {[%emt 0:00:06]} 55. Kf1 {[%emt 0:00:48]} Kg6 {[%emt 0:00:09]} 56. Rf8 {[%emt 0:00:53]} Qe5 {[%emt 0:01:34]} 57. Rf5 {[%emt 0:01:13]} Qb2 {[%emt 0:00:01]} 58. Ke1 {[%emt 0:00:36]} Qc2 {[%emt 0:00:05]} 59. Kf1 {[%emt 0:00:48]} Qd2 {[%emt 0:00:01]} 60. Rf8 {[%emt 0:00:50]} Kg7 {[%emt 0:02:40]} 61. Rf5 {[%emt 0:00:03]} Qc2 {[%emt 0:01:14]} 62. Ke1 {[%emt 0:01:07]} Qg2 {[%emt 0:00:24]} 63. Rxg5+ {[%emt 0:00:37]} Kf6 {[%emt 0:00:01]} 64. Rh5 {[%emt 0:00:54]} Ke7 {[%emt 0:00:32]} 65. Re5+ {[%emt 0:00:48]} Kd6 {[%emt 0:00:00]} 66. Rf5 {[%emt 0:00:30]} Ke6 {[%emt 0:00:01]} 67. Kd1 {[%emt 0:00:28]} Qf2 {[%emt 0:00:01]} 68. Rf8 {[%emt 0:00:27]} Qd4+ {[%emt 0:00:39]} 69. Ke2 {[%emt 0:00:27]} Qc4+ {[%emt 0:00:06]} 70. Kd1 {[%emt 0:00:27]} Qa2 {[%emt 0:01:13]} 71. Rf5 {[%emt 0:00:22]} Qf2 {[%emt 0:00:01]} 72. Rf8 {[%emt 0:00:12]} Ke5 {[%emt 0:01:11]} 73. g5 {[%emt 0:00:56]} Qc5 {[%emt 0:01:19]} 74. Rf6 {[%emt 0:00:43]} Kd4 {[%emt 0:00:20]} 75. Ke2 {[%emt 0:00:32]} Qe5+ {[%emt 0:01:04]} 76. Kf1 {[%emt 0:00:20]} Ke3 {[%emt 0:00:34]} 77. Rf8 {[%emt 0:00:39]} Qc5 {[%emt 0:01:06]} 78. Rf6 {[%emt 0:00:29]} Qb5+ {[%emt 0:09:42]} 0-1

[Event "Charlotte Fall GM-A 2023"]
[Site "Charlotte"]
[Date "2023.11.21"]
[Round "9.3"]
[White "Chen, Ryo"]
[Black "Cruz, Cristhian"]
[Result "1/2-1/2"]
[ECO "B83"]
[WhiteElo "2367"]
[BlackElo "2498"]
[Annotator "RC"]
[PlyCount "40"]
[EventDate "2023.11.17"]
[EventType "tourn"]
[EventCountry "USA"]
[SourceTitle "playchess.com"]
[Source "ChessBase"]
[SourceQuality "1"]
[TimeControl "5400+30"]

1. e4 {[%emt 0:02:29]} c5 {[%emt 0:00:40]} 2. Nf3 {[%emt 0:00:11]} e6 {[%emt 0:00:06]} 3. d4 {[%emt 0:00:20]} cxd4 {[%emt 0:00:05]} 4. Nxd4 {[%emt 0:00:06]} Nf6 {[%emt 0:00:05]} 5. Nc3 {[%emt 0:00:09]} d6 {[%emt 0:00:04]} 6. Be2 {[%emt 0:00:29]} Be7 {[%emt 0:00:48]} 7. O-O {[%emt 0:00:46]} O-O {[%emt 0:00:00]} 8. Be3 {[%emt 0:02:04]} Nc6 {[%emt 0:00:00]} 9. f4 {[%emt 0:01:05]} e5 {[%emt 0:00:08]} 10. Nb3 {[%emt 0:10:22]} exf4 {[%emt 0:00:21]} 11. Bxf4 {[%emt 0:01:10]} Be6 {[%emt 0:00:08]} 12. Qe1 {[%emt 0:06:39]} a5 {[%emt 0:06:44]} 13. Be3 {[%emt 0:23:14]} a4 {[%emt 0:28:26]} 14. Nd4 {[%emt 0:01:59]} Nxd4 15. Bxd4 {[%emt 0:00:10]} Nd7 {[%emt 0:00:31]} 16. Qg3 {[%emt 0:11:36]} Ne5 {[%emt 0:05:12]} 17. Rad1 {[%emt 0:06:31]} Bh4 {[%emt 0:04:25]} 18. Qf4 {[%emt 0:04:59]} Bg5 {[%emt 0:04:07]} 19. Qg3 {[%emt 0:02:19]} Bh4 {[%emt 0:02:18]} 20. Qf4 {[%emt 0:00:38]} Bg5 {[%emt 0:46:22]} 1/2-1/2

[Event "Charlotte Fall GM-A 2023"]
[Site "Charlotte"]
[Date "2023.11.21"]
[Round "9.5"]
[White "Bellahcene, Bilel"]
[Black "Mardov, Dimitar"]
[Result "1-0"]
[ECO "C77"]
[WhiteElo "2502"]
[BlackElo "2455"]
[Annotator "RC"]
[PlyCount "111"]
[EventDate "2023.11.17"]
[EventType "tourn"]
[EventCountry "USA"]
[SourceTitle "playchess.com"]
[Source "ChessBase"]
[SourceQuality "1"]
[TimeControl "5400+30"]

1. e4 {[%emt 0:10:15]} e5 {[%emt 0:00:06]} 2. Nf3 {[%emt 0:00:07]} Nc6 {[%emt 0:00:08]} 3. Bb5 {[%emt 0:00:03]} a6 {[%emt 0:00:42]} 4. Ba4 {[%emt 0:00:03]} Nf6 {[%emt 0:00:19]} 5. O-O {[%emt 0:00:06]} Be7 {[%emt 0:00:38]} 6. d3 {[%emt 0:00:06]} b5 {[%emt 0:02:30]} 7. Bb3 {[%emt 0:00:30]} d6 {[%emt 0:01:34]} 8. a3 {[%emt 0:00:04]} O-O {[%emt 0:03:17]} 9. Nc3 {[%emt 0:00:03]} Na5 {[%emt 0:04:07]} 10. Ba2 {[%emt 0:00:11]} Be6 {[%emt 0:01:59]} 11. Bxe6 {[%emt 0:00:14]} fxe6 {[%emt 0:00:25]} 12. b4 {[%emt 0:00:03]} Nc6 {[%emt 0:01:13]} 13. Bg5 {[%emt 0:00:06]} Nd7 {[%emt 0:10:50]} 14. Be3 {[%emt 0:00:29]} Bf6 {[%emt 0:01:17]} 15. Ne2 {[%emt 0:05:38]} d5 {[%emt 0:16:15]} 16. c4 {[%emt 0:03:08]} d4 {[%emt 0:08:49]} 17. Bd2 {[%emt 0:02:06]} Nb6 {[%emt 0:06:29]} 18. c5 {[%emt 0:00:31]} Na4 {[%emt 0:02:06]} 19. Qb3 {[%emt 0:00:06]} Qd7 {[%emt 0:00:53]} 20. h4 {[%emt 0:00:17]} a5 {[%emt 0:05:44]} 21. g3 {[%emt 0:04:15]} axb4 {[%emt 0:00:31]} 22. axb4 {[%emt 0:00:24]} Qf7 {[%emt 0:04:28]} 23. Kg2 {[%emt 0:00:36]} Be7 {[%emt 0:01:50]} 24. Nh2 {[%emt 0:00:48]} Kh8 {[%emt 0:03:10]} 25. f3 {[%emt 0:03:42]} Qg6 {[%emt 0:02:05]} 26. h5 {[%emt 0:01:37]} Qxh5 {[%emt 0:01:06]} 27. Qxe6 {[%emt 0:00:04]} Rf6 {[%emt 0:01:24]} 28. Qb3 {[%emt 0:01:23]} Qf7 {[%emt 0:01:43]} 29. Qxf7 {[%emt 0:03:42]} Rxf7 {[%emt 0:00:02]} 30. f4 {[%emt 0:00:07]} Rff8 {[%emt 0:10:39]} 31. Nf3 {[%emt 0:01:34]} Nb2 {[%emt 0:03:08]} 32. Rab1 {[%emt 0:00:24]} Nxd3 {[%emt 0:02:26]} 33. Rb3 {[%emt 0:02:46]} Ndxb4 {[%emt 0:05:07]} 34. Bxb4 {[%emt 0:01:41]} Nxb4 {[%emt 0:00:00]} 35. Nxe5 {[%emt 0:15:19]} Na6 {[%emt 0:00:00]} 36. Nxd4 {[%emt 0:00:04]} Nxc5 {[%emt 0:00:00]} 37. Re3 {[%emt 0:00:02]} Ra4 {[%emt 0:00:00]} 38. Nec6 {[%emt 0:00:17]} Re8 {[%emt 0:00:48]} 39. e5 {[%emt 0:04:36]} b4 {[%emt 0:00:32]} 40. Rb1 {[%emt 0:02:08]} Na6 {[%emt 0:00:30]} 41. Nxe7 {[%emt 0:04:40]} Rxe7 {[%emt 0:00:03]} 42. Nc6 {[%emt 0:00:02]} Re8 {[%emt 0:00:26]} 43. f5 {[%emt 0:01:32]} Ra2+ {[%emt 0:01:29]} 44. Kf3 {[%emt 0:00:42]} Rc2 {[%emt 0:00:22]} 45. Nxb4 {[%emt 0:00:12]} Nxb4 {[%emt 0:00:05]} 46. Rxb4 {[%emt 0:00:03]} Kg8 {[%emt 0:01:15]} 47. g4 {[%emt 0:00:28]} h6 {[%emt 0:00:16]} 48. e6 {[%emt 0:01:36]} c5 {[%emt 0:00:58]} 49. Rb7 {[%emt 0:00:11]} c4 {[%emt 0:00:35]} 50. Ra3 {[%emt 0:03:26]} Rd8 {[%emt 0:00:12]} 51. Rd7 {[%emt 0:00:32]} Rb8 {[%emt 0:00:35]} 52. Raa7 {[%emt 0:00:23]} Rb3+ {[%emt 0:00:11]} 53. Ke4 {[%emt 0:00:25]} Re2+ {[%emt 0:00:15]} 54. Kd5 {[%emt 0:00:34]} Rd3+ {[%emt 0:00:58]} 55. Kxc4 {[%emt 0:00:27]} Rxd7 {[%emt 0:00:38]} 56. exd7 {[%emt 0:00:30]} 1-0